[Event "Early-Titled-Tuesday-Blitz-October-17-2023"]
[Site "Chess.com"]
[Date "2023.10.17"]
[Round "8"]
[White "Lennis93"]
[Black "bazar-wokzal"]
[Result "0-1"]
[WhiteElo "2698"]
[BlackElo "2595"]
[TimeControl "180+1"]
[EndTime "9:27:17 PDT"]
[Termination "bazar-wokzal won by resignation"]

1. c4 {[%clk 0:03:00.9]} 1... e5 {[%clk 0:02:58.8]} 2. g3 {[%clk 0:03:01.3]}
2... h5 {[%clk 0:02:57.2]} 3. Bg2 {[%clk 0:03:02]} 3... h4 {[%clk 0:02:57.5]} 4.
Nc3 {[%clk 0:02:59.9]} 4... Nf6 {[%clk 0:02:57.1]} 5. Nf3 {[%clk 0:02:51.8]}
5... h3 {[%clk 0:02:52.3]} 6. Bf1 {[%clk 0:02:51.7]} 6... e4 {[%clk 0:02:52.4]}
7. Ng5 {[%clk 0:02:48.3]} 7... c6 {[%clk 0:02:52.4]} 8. Ngxe4 {[%clk 0:02:32.4]}
8... Nxe4 {[%clk 0:02:52.1]} 9. Nxe4 {[%clk 0:02:32.2]} 9... d5 {[%clk
0:02:52.7]} 10. cxd5 {[%clk 0:02:30.5]} 10... cxd5 {[%clk 0:02:53.1]} 11. Nc3
{[%clk 0:02:26.9]} 11... d4 {[%clk 0:02:53.3]} 12. Ne4 {[%clk 0:02:26.5]} 12...
f5 {[%clk 0:02:49.7]} 13. Qc2 {[%clk 0:02:00.8]} 13... fxe4 {[%clk 0:02:47.8]}
14. Qxe4+ {[%clk 0:02:01.7]} 14... Be7 {[%clk 0:02:45.2]} 15. Qg6+ {[%clk
0:02:00.9]} 15... Kf8 {[%clk 0:02:45.2]} 16. e3 {[%clk 0:01:59.7]} 16... Nc6
{[%clk 0:02:41.1]} 17. Bc4 {[%clk 0:01:59.3]} 17... Ne5 {[%clk 0:02:39.4]} 0-1

[Event "Early-Titled-Tuesday-Blitz-October-17-2023"]
[Site "Chess.com"]
[Date "2023.10.17"]
[Round "8"]
[White "dontcatchmeifyoucant"]
[Black "HouseOfDurin"]
[Result "0-1"]
[WhiteElo "2103"]
[BlackElo "2276"]
[TimeControl "180+1"]
[EndTime "9:27:39 PDT"]
[Termination "HouseOfDurin won by checkmate"]

1. e4 {[%clk 0:02:56.1]} 1... c5 {[%clk 0:03:00.3]} 2. Nf3 {[%clk 0:02:56.1]}
2... Nc6 {[%clk 0:03:01]} 3. Bb5 {[%clk 0:02:55.5]} 3... g6 {[%clk 0:03:00.8]}
4. O-O {[%clk 0:02:55]} 4... Bg7 {[%clk 0:03:00.8]} 5. c3 {[%clk 0:02:54.4]}
5... e5 {[%clk 0:02:59.6]} 6. d4 {[%clk 0:02:54.3]} 6... exd4 {[%clk 0:02:58]}
7. cxd4 {[%clk 0:02:54.5]} 7... Nxd4 {[%clk 0:02:58.2]} 8. Nxd4 {[%clk
0:02:54.8]} 8... cxd4 {[%clk 0:02:58]} 9. Bf4 {[%clk 0:02:55.3]} 9... Ne7 {[%clk
0:02:57.5]} 10. Nd2 {[%clk 0:02:48]} 10... O-O {[%clk 0:02:57]} 11. Bd6 {[%clk
0:02:37.8]} 11... a6 {[%clk 0:02:49.7]} 12. Bc4 {[%clk 0:02:34.2]} 12... b5
{[%clk 0:02:49.2]} 13. Bd5 {[%clk 0:02:30.5]} 13... Nxd5 {[%clk 0:02:40.5]} 14.
Bxf8 {[%clk 0:02:31.4]} 14... Qxf8 {[%clk 0:02:40.4]} 15. exd5 {[%clk 0:02:31]}
15... Bb7 {[%clk 0:02:40.8]} 16. Nf3 {[%clk 0:02:25.5]} 16... Qc5 {[%clk
0:02:34.2]} 17. Rc1 {[%clk 0:02:10.7]} 17... Qxd5 {[%clk 0:02:33.6]} 18. Rc7
{[%clk 0:02:10.4]} 18... Bc6 {[%clk 0:02:32.5]} 19. Qd2 {[%clk 0:01:59.4]} 19...
Be5 {[%clk 0:02:19.1]} 20. Nxe5 {[%clk 0:01:51.9]} 20... Qxg2# {[%clk
0:02:17.7]} 0-1

[Event "Early-Titled-Tuesday-Blitz-October-17-2023"]
[Site "Chess.com"]
[Date "2023.10.17"]
[Round "8"]
[White "averageFM"]
[Black "GMSrinath"]
[Result "1-0"]
[WhiteElo "2580"]
[BlackElo "2826"]
[TimeControl "180+1"]
[EndTime "9:28:09 PDT"]
[Termination "averageFM won by resignation"]

1. e4 {[%clk 0:03:00.9]} 1... c5 {[%clk 0:02:18.4]} 2. Nf3 {[%clk 0:02:58.9]}
2... d6 {[%clk 0:02:19]} 3. d4 {[%clk 0:02:57.4]} 3... cxd4 {[%clk 0:02:19.9]}
4. Nxd4 {[%clk 0:02:57]} 4... Nf6 {[%clk 0:02:20.5]} 5. Nc3 {[%clk 0:02:57]}
5... Nc6 {[%clk 0:02:21.1]} 6. Bg5 {[%clk 0:02:55.7]} 6... e6 {[%clk 0:02:21.4]}
7. Qd2 {[%clk 0:02:55.1]} 7... a6 {[%clk 0:02:21.5]} 8. Nxc6 {[%clk 0:02:55.2]}
8... bxc6 {[%clk 0:02:21.2]} 9. O-O-O {[%clk 0:02:55.5]} 9... Be7 {[%clk
0:02:20.6]} 10. Bxf6 {[%clk 0:02:55]} 10... gxf6 {[%clk 0:02:21.5]} 11. Bc4
{[%clk 0:02:54.4]} 11... d5 {[%clk 0:02:19.8]} 12. exd5 {[%clk 0:02:54]} 12...
cxd5 {[%clk 0:02:19.7]} 13. Nxd5 {[%clk 0:02:54.1]} 13... exd5 {[%clk
0:02:18.5]} 14. Bxd5 {[%clk 0:02:54]} 14... Be6 {[%clk 0:02:13.1]} 15. Bc6+
{[%clk 0:02:51.8]} 15... Kf8 {[%clk 0:02:12.3]} 16. Qh6+ {[%clk 0:02:49.5]}
16... Kg8 {[%clk 0:02:11.9]} 17. Rxd8+ {[%clk 0:02:48.9]} 17... Rxd8 {[%clk
0:02:12.8]} 18. Rd1 {[%clk 0:02:43.4]} 18... Rb8 {[%clk 0:02:07.9]} 19. Rd3
{[%clk 0:02:38.4]} 19... Bf5 {[%clk 0:02:06.4]} 20. Rg3+ {[%clk 0:02:27.8]}
20... Bg6 {[%clk 0:02:06.9]} 21. Bd5 {[%clk 0:02:15.4]} 1-0

[Event "Early-Titled-Tuesday-Blitz-October-17-2023"]
[Site "Chess.com"]
[Date "2023.10.17"]
[Round "8"]
[White "Rosh1610"]
[Black "GAusal"]
[Result "1-0"]
[WhiteElo "2441"]
[BlackElo "2278"]
[TimeControl "180+1"]
[EndTime "9:29:27 PDT"]
[Termination "Rosh1610 won on time"]

1. e4 {[%clk 0:02:59.4]} 1... d6 {[%clk 0:00:33.3]} 2. d4 {[%clk 0:02:56.1]}
2... g6 {[%clk 0:00:33.3]} 3. Nc3 {[%clk 0:02:55.5]} 3... Bg7 {[%clk 0:00:33.4]}
4. f4 {[%clk 0:02:56]} 4... Nf6 {[%clk 0:00:32.9]} 5. Nf3 {[%clk 0:02:56]} 5...
O-O {[%clk 0:00:33.4]} 6. e5 {[%clk 0:02:56.3]} 6... Ne8 {[%clk 0:00:32.6]} 7.
Bc4 {[%clk 0:02:53.9]} 7... Bg4 {[%clk 0:00:28.8]} 8. Be3 {[%clk 0:02:49.7]}
8... c6 {[%clk 0:00:28.4]} 9. O-O {[%clk 0:02:48.9]} 9... d5 {[%clk 0:00:28.3]}
10. Bd3 {[%clk 0:02:48.4]} 10... e6 {[%clk 0:00:28.1]} 11. h3 {[%clk 0:02:47.8]}
11... Bxf3 {[%clk 0:00:27.7]} 12. Qxf3 {[%clk 0:02:48.6]} 12... Nd7 {[%clk
0:00:26.6]} 13. Ne2 {[%clk 0:02:46.6]} 13... c5 {[%clk 0:00:26.8]} 14. c3 {[%clk
0:02:46.4]} 14... c4 {[%clk 0:00:22.4]} 15. Bc2 {[%clk 0:02:46]} 15... h5 {[%clk
0:00:21.5]} 16. g4 {[%clk 0:02:43.4]} 16... hxg4 {[%clk 0:00:20.7]} 17. hxg4
{[%clk 0:02:44.3]} 17... Qh4 {[%clk 0:00:19.9]} 18. Rf2 {[%clk 0:02:41.8]} 18...
f5 {[%clk 0:00:09.2]} 19. g5 {[%clk 0:02:35]} 19... Kf7 {[%clk 0:00:02.3]} 20.
Rh2 {[%clk 0:02:29.5]} 20... Qg4+ {[%clk 0:00:01.4]} 21. Qxg4 {[%clk 0:02:29.7]}
21... fxg4 {[%clk 0:00:01.4]} 22. Rg2 {[%clk 0:02:29.5]} 1-0

[Event "Early-Titled-Tuesday-Blitz-October-17-2023"]
[Site "Chess.com"]
[Date "2023.10.17"]
[Round "8"]
[White "GM_Huschenbeth"]
[Black "zsoltkorpics"]
[Result "1-0"]
[WhiteElo "2559"]
[BlackElo "2347"]
[TimeControl "180+1"]
[EndTime "9:29:45 PDT"]
[Termination "GM_Huschenbeth won by checkmate"]

1. e4 {[%clk 0:03:00.9]} 1... c5 {[%clk 0:02:59.9]} 2. Nf3 {[%clk 0:02:58.2]}
2... e6 {[%clk 0:03:00.2]} 3. d4 {[%clk 0:02:58.2]} 3... cxd4 {[%clk 0:03:00.6]}
4. Nxd4 {[%clk 0:02:59.1]} 4... Nc6 {[%clk 0:03:01.1]} 5. Nc3 {[%clk 0:02:59.1]}
5... Qc7 {[%clk 0:03:01.7]} 6. Be3 {[%clk 0:02:58.7]} 6... a6 {[%clk 0:03:02.3]}
7. Bd3 {[%clk 0:02:59]} 7... Nf6 {[%clk 0:03:02.2]} 8. O-O {[%clk 0:02:58.9]}
8... Bb4 {[%clk 0:03:02.1]} 9. Nxc6 {[%clk 0:02:54]} 9... bxc6 {[%clk 0:03:03]}
10. f4 {[%clk 0:02:46.3]} 10... Bxc3 {[%clk 0:02:43.9]} 11. bxc3 {[%clk
0:02:46.1]} 11... d5 {[%clk 0:02:44.6]} 12. Bc5 {[%clk 0:02:22.7]} 12... Nd7
{[%clk 0:02:42.9]} 13. Bd4 {[%clk 0:02:20.5]} 13... O-O {[%clk 0:01:38.7]} 14.
exd5 {[%clk 0:02:20.2]} 14... c5 {[%clk 0:00:35.9]} 15. Bxh7+ {[%clk 0:02:10.5]}
15... Kxh7 {[%clk 0:00:31.9]} 16. Qh5+ {[%clk 0:02:10.2]} 16... Kg8 {[%clk
0:00:31.7]} 17. Bxg7 {[%clk 0:02:11.1]} 17... Kxg7 {[%clk 0:00:21.9]} 18. Qg5+
{[%clk 0:02:08.8]} 18... Kh8 {[%clk 0:00:06]} 19. Rf3 {[%clk 0:02:03.5]} 19...
Nf6 {[%clk 0:00:01.6]} 20. Qxf6+ {[%clk 0:02:03]} 20... Kg8 {[%clk 0:00:01.9]}
21. Rg3+ {[%clk 0:02:03.1]} 21... Kh7 {[%clk 0:00:02.4]} 22. Qg7# {[%clk
0:02:04]} 1-0

[Event "Early-Titled-Tuesday-Blitz-October-17-2023"]
[Site "Chess.com"]
[Date "2023.10.17"]
[Round "8"]
[White "I_am_Javi"]
[Black "AsadliVugar"]
[Result "1-0"]
[WhiteElo "2768"]
[BlackElo "2879"]
[TimeControl "180+1"]
[EndTime "9:29:48 PDT"]
[Termination "I_am_Javi won by resignation"]

1. e4 {[%clk 0:03:00.9]} 1... g6 {[%clk 0:02:58.2]} 2. d4 {[%clk 0:03:00.9]}
2... d6 {[%clk 0:02:58.8]} 3. c3 {[%clk 0:03:00.7]} 3... Bg7 {[%clk 0:02:57.2]}
4. Bd3 {[%clk 0:03:01.1]} 4... e5 {[%clk 0:02:51.9]} 5. d5 {[%clk 0:03:01.1]}
5... Ne7 {[%clk 0:02:46]} 6. Ne2 {[%clk 0:03:01.6]} 6... O-O {[%clk 0:02:46]} 7.
h4 {[%clk 0:03:01.9]} 7... c6 {[%clk 0:02:44.7]} 8. c4 {[%clk 0:03:01.5]} 8...
h5 {[%clk 0:02:39.2]} 9. Nbc3 {[%clk 0:02:59.3]} 9... Na6 {[%clk 0:02:35.7]} 10.
Be3 {[%clk 0:02:58.3]} 10... f5 {[%clk 0:02:29.2]} 11. f3 {[%clk 0:02:57.9]}
11... Kh7 {[%clk 0:02:14.4]} 12. Qd2 {[%clk 0:02:39.7]} 12... fxe4 {[%clk
0:02:13]} 13. fxe4 {[%clk 0:02:40.6]} 13... Ng8 {[%clk 0:02:12.6]} 14. Ng1
{[%clk 0:02:33.7]} 14... Bg4 {[%clk 0:02:05.5]} 15. Be2 {[%clk 0:02:33.6]} 15...
Bh6 {[%clk 0:02:05.1]} 16. Bxg4 {[%clk 0:02:29.6]} 16... Bxe3 {[%clk 0:02:05]}
17. Qxe3 {[%clk 0:02:29.8]} 17... hxg4 {[%clk 0:02:05.5]} 18. h5 {[%clk
0:02:29.7]} 18... g5 {[%clk 0:02:05.3]} 19. Nge2 {[%clk 0:02:29.9]} 19... Nh6
{[%clk 0:02:00.4]} 20. O-O-O {[%clk 0:02:29.5]} 20... Qe7 {[%clk 0:01:46.6]} 21.
Kb1 {[%clk 0:02:28]} 21... Nc5 {[%clk 0:01:45.7]} 22. Rhf1 {[%clk 0:02:20.4]}
22... a5 {[%clk 0:01:44.7]} 23. b3 {[%clk 0:02:19.4]} 23... Rxf1 {[%clk
0:01:31]} 24. Rxf1 {[%clk 0:02:20.3]} 24... Rf8 {[%clk 0:01:29.1]} 25. Rxf8
{[%clk 0:02:20.5]} 25... Qxf8 {[%clk 0:01:30]} 26. Qxg5 {[%clk 0:02:19.8]} 26...
Qf1+ {[%clk 0:01:29.3]} 27. Kc2 {[%clk 0:02:16.8]} 27... Qf7 {[%clk 0:01:19.6]}
28. a3 {[%clk 0:02:15.9]} 28... Nd7 {[%clk 0:01:17.5]} 29. b4 {[%clk 0:02:11.8]}
29... axb4 {[%clk 0:01:17.2]} 30. axb4 {[%clk 0:02:12.7]} 30... c5 {[%clk
0:01:17.6]} 31. Nb5 {[%clk 0:02:07.8]} 31... Nf8 {[%clk 0:01:08]} 32. Nxd6
{[%clk 0:01:59.4]} 32... Qf2 {[%clk 0:01:08]} 33. Kd2 {[%clk 0:01:59.4]} 33...
cxb4 {[%clk 0:01:07.7]} 34. Ne8 {[%clk 0:01:47.1]} 1-0

[Event "Early-Titled-Tuesday-Blitz-October-17-2023"]
[Site "Chess.com"]
[Date "2023.10.17"]
[Round "8"]
[White "brm72"]
[Black "KNVB"]
[Result "1-0"]
[WhiteElo "2550"]
[BlackElo "2669"]
[TimeControl "180+1"]
[EndTime "9:30:04 PDT"]
[Termination "brm72 won by resignation"]

1. e4 {[%clk 0:03:00.9]} 1... e5 {[%clk 0:02:51.4]} 2. Nf3 {[%clk 0:03:00.6]}
2... Nc6 {[%clk 0:02:48.3]} 3. Bc4 {[%clk 0:03:00.4]} 3... Nf6 {[%clk 0:02:46]}
4. d4 {[%clk 0:03:00.8]} 4... exd4 {[%clk 0:02:11]} 5. e5 {[%clk 0:03:01.7]}
5... d5 {[%clk 0:02:00.6]} 6. Bb5 {[%clk 0:02:58.6]} 6... Ne4 {[%clk 0:01:56.3]}
7. Nxd4 {[%clk 0:02:55.9]} 7... Bc5 {[%clk 0:01:54.1]} 8. Be3 {[%clk 0:02:55.7]}
8... O-O {[%clk 0:01:47.9]} 9. Nxc6 {[%clk 0:02:55.8]} 9... bxc6 {[%clk
0:01:45.4]} 10. Bxc5 {[%clk 0:02:56]} 10... Nxc5 {[%clk 0:01:43.3]} 11. Bxc6
{[%clk 0:02:56.1]} 11... Rb8 {[%clk 0:01:38.9]} 12. Qxd5 {[%clk 0:02:55.7]}
12... Qe7 {[%clk 0:01:22.1]} 13. O-O {[%clk 0:02:49.9]} 13... Rxb2 {[%clk
0:01:08.1]} 14. Nc3 {[%clk 0:02:49.4]} 14... Rxc2 {[%clk 0:00:45.8]} 15. Qd4
{[%clk 0:02:44.6]} 15... Ne6 {[%clk 0:00:11.1]} 16. Qd3 {[%clk 0:02:44.3]} 16...
Rb2 {[%clk 0:00:10]} 17. Nd5 {[%clk 0:02:39.6]} 17... Qc5 {[%clk 0:00:03.4]} 18.
Rac1 {[%clk 0:02:39.8]} 18... Qd4 {[%clk 0:00:03.4]} 19. Qf5 {[%clk 0:02:37]}
19... Nd8 {[%clk 0:00:01.6]} 20. Ne7+ {[%clk 0:02:35.4]} 20... Kh8 {[%clk
0:00:01.6]} 21. Nxc8 {[%clk 0:02:26.3]} 21... Nxc6 {[%clk 0:00:01.6]} 22. Rxc6
{[%clk 0:02:25.5]} 22... Qd8 {[%clk 0:00:01.8]} 23. Nxa7 {[%clk 0:02:20.4]}
23... Qb8 {[%clk 0:00:02.2]} 24. Ra6 {[%clk 0:02:01.1]} 24... Qb7 {[%clk
0:00:02.6]} 25. Ra3 {[%clk 0:02:00.7]} 25... Qb4 {[%clk 0:00:01.8]} 26. Rh3
{[%clk 0:01:59]} 26... g6 {[%clk 0:00:01.7]} 27. Qf6+ {[%clk 0:01:58.2]} 27...
Kg8 {[%clk 0:00:02.2]} 28. Nc6 {[%clk 0:01:58.3]} 1-0

[Event "Early-Titled-Tuesday-Blitz-October-17-2023"]
[Site "Chess.com"]
[Date "2023.10.17"]
[Round "8"]
[White "esrosenberg"]
[Black "The_Machine04"]
[Result "0-1"]
[WhiteElo "2427"]
[BlackElo "2701"]
[TimeControl "180+1"]
[EndTime "9:30:11 PDT"]
[Termination "The_Machine04 won by checkmate"]

1. d4 {[%clk 0:03:00.9]} 1... d6 {[%clk 0:02:59.7]} 2. e4 {[%clk 0:02:57.4]}
2... Nf6 {[%clk 0:02:59.6]} 3. Nc3 {[%clk 0:02:57.2]} 3... e5 {[%clk 0:02:59.7]}
4. dxe5 {[%clk 0:02:56.2]} 4... dxe5 {[%clk 0:03:00.6]} 5. Qxd8+ {[%clk
0:02:56.3]} 5... Kxd8 {[%clk 0:03:01.5]} 6. Bc4 {[%clk 0:02:56.2]} 6... Be6
{[%clk 0:03:01.1]} 7. Bxe6 {[%clk 0:02:54.5]} 7... fxe6 {[%clk 0:03:02]} 8. f3
{[%clk 0:02:52.9]} 8... Bd6 {[%clk 0:03:01.8]} 9. Be3 {[%clk 0:02:48.8]} 9...
Ke7 {[%clk 0:03:02.3]} 10. O-O-O {[%clk 0:02:48.7]} 10... a6 {[%clk 0:03:02.5]}
11. Nge2 {[%clk 0:02:45.8]} 11... Nbd7 {[%clk 0:03:02.4]} 12. h4 {[%clk
0:02:41.9]} 12... b5 {[%clk 0:03:02.3]} 13. h5 {[%clk 0:02:41.1]} 13... h6
{[%clk 0:03:02.7]} 14. Bf2 {[%clk 0:02:30.3]} 14... Rhb8 {[%clk 0:03:01.5]} 15.
Bh4 {[%clk 0:02:30.5]} 15... Kf7 {[%clk 0:02:59]} 16. Kb1 {[%clk 0:02:28.9]}
16... a5 {[%clk 0:02:58.9]} 17. Nc1 {[%clk 0:02:28.9]} 17... a4 {[%clk 0:02:59]}
18. a3 {[%clk 0:02:28.8]} 18... b4 {[%clk 0:02:58.5]} 19. axb4 {[%clk
0:02:29.4]} 19... Bxb4 {[%clk 0:02:56.4]} 20. N1a2 {[%clk 0:02:20.1]} 20... Bd6
{[%clk 0:02:55.5]} 21. Ka1 {[%clk 0:02:20.3]} 21... Nb6 {[%clk 0:02:55.7]} 22.
Nb5 {[%clk 0:02:18.8]} 22... Nc4 {[%clk 0:02:52.9]} 23. Nxd6+ {[%clk 0:02:16.9]}
23... cxd6 {[%clk 0:02:53.8]} 24. Nc3 {[%clk 0:01:55.6]} 24... Rxb2 {[%clk
0:02:49.4]} 25. Rxd6 {[%clk 0:01:39.1]} 25... Rxc2 {[%clk 0:02:48.9]} 26. Rd3
{[%clk 0:01:39.1]} 26... Nxh5 {[%clk 0:02:22.5]} 27. Rb1 {[%clk 0:01:38]} 27...
Nf4 {[%clk 0:02:22]} 28. Rd7+ {[%clk 0:01:21.5]} 28... Kg6 {[%clk 0:02:21.9]}
29. Nb5 {[%clk 0:01:01.8]} 29... Rxg2 {[%clk 0:02:12.7]} 30. Be7 {[%clk
0:00:44.7]} 30... a3 {[%clk 0:02:10.7]} 31. Rc7 {[%clk 0:00:39.5]} 31... Nd2
{[%clk 0:02:03.1]} 32. Nxa3 {[%clk 0:00:16.2]} 32... Nxb1 {[%clk 0:02:00.2]} 33.
Kxb1 {[%clk 0:00:17.1]} 33... Rb8+ {[%clk 0:01:57.8]} 34. Kc1 {[%clk 0:00:17.3]}
34... Rb3 {[%clk 0:01:56.1]} 35. Bd6 {[%clk 0:00:13.4]} 35... Rxf3 {[%clk
0:01:55.3]} 36. Bxe5 {[%clk 0:00:13.8]} 36... Rf1# {[%clk 0:01:55.4]} 0-1

[Event "Early-Titled-Tuesday-Blitz-October-17-2023"]
[Site "Chess.com"]
[Date "2023.10.17"]
[Round "8"]
[White "GradualismUnleashed"]
[Black "TigrVShlyape"]
[Result "0-1"]
[WhiteElo "2623"]
[BlackElo "2834"]
[TimeControl "180+1"]
[EndTime "9:30:18 PDT"]
[Termination "TigrVShlyape won by resignation"]

1. e4 {[%clk 0:03:00.9]} 1... c5 {[%clk 0:02:54.5]} 2. Nf3 {[%clk 0:03:01]} 2...
e6 {[%clk 0:02:54.2]} 3. d4 {[%clk 0:03:01.6]} 3... cxd4 {[%clk 0:02:54.5]} 4.
Nxd4 {[%clk 0:03:02.5]} 4... a6 {[%clk 0:02:53.6]} 5. Nc3 {[%clk 0:03:00.7]}
5... b5 {[%clk 0:02:53.2]} 6. Bd3 {[%clk 0:03:00.8]} 6... Qb6 {[%clk 0:02:49.9]}
7. Be3 {[%clk 0:02:58.6]} 7... Bc5 {[%clk 0:02:49.2]} 8. Be2 {[%clk 0:02:58.8]}
8... Nc6 {[%clk 0:02:48.5]} 9. Nxc6 {[%clk 0:02:57.2]} 9... Bxe3 {[%clk
0:02:48.9]} 10. fxe3 {[%clk 0:02:56.8]} 10... dxc6 {[%clk 0:02:49.5]} 11. Qd4
{[%clk 0:02:56.5]} 11... Qxd4 {[%clk 0:02:49.9]} 12. exd4 {[%clk 0:02:56.7]}
12... e5 {[%clk 0:02:50.5]} 13. O-O-O {[%clk 0:02:49.4]} 13... exd4 {[%clk
0:02:47.7]} 14. Rxd4 {[%clk 0:02:49.2]} 14... Ne7 {[%clk 0:02:45.6]} 15. Rhd1
{[%clk 0:02:45.2]} 15... Be6 {[%clk 0:02:44.7]} 16. e5 {[%clk 0:02:39.2]} 16...
Ng6 {[%clk 0:02:38.4]} 17. Ne4 {[%clk 0:02:31.1]} 17... Nxe5 {[%clk 0:02:32.9]}
18. Nc5 {[%clk 0:02:31.1]} 18... Bd5 {[%clk 0:02:29.5]} 19. a4 {[%clk
0:02:22.1]} 19... Bxg2 {[%clk 0:02:15.2]} 20. Rg1 {[%clk 0:02:15.6]} 20... Bd5
{[%clk 0:02:14.2]} 21. Rxg7 {[%clk 0:02:10.9]} 21... Ke7 {[%clk 0:02:12.9]} 22.
b4 {[%clk 0:01:37.4]} 22... Ng6 {[%clk 0:01:59.8]} 23. axb5 {[%clk 0:01:04.9]}
23... axb5 {[%clk 0:01:59.3]} 24. Bxb5 {[%clk 0:01:04.5]} 24... Kf6 {[%clk
0:01:56.1]} 25. Rxg6+ {[%clk 0:01:04.1]} 25... hxg6 {[%clk 0:01:55.4]} 26. Bxc6
{[%clk 0:00:51.2]} 26... Bxc6 {[%clk 0:01:55]} 27. Rd6+ {[%clk 0:00:51.4]} 27...
Ke7 {[%clk 0:01:52.3]} 28. Rxc6 {[%clk 0:00:50.9]} 28... Rhc8 {[%clk 0:01:52.7]}
29. Rb6 {[%clk 0:00:40.5]} 29... Rcb8 {[%clk 0:01:52.3]} 30. Rxb8 {[%clk
0:00:38.3]} 30... Rxb8 {[%clk 0:01:52.3]} 31. c3 {[%clk 0:00:37.9]} 31... Rh8
{[%clk 0:01:48.8]} 32. b5 {[%clk 0:00:34.6]} 32... Kd6 {[%clk 0:01:48.9]} 33.
Ne4+ {[%clk 0:00:25.7]} 33... Kd5 {[%clk 0:01:47.6]} 34. Ng5 {[%clk 0:00:19.9]}
34... f6 {[%clk 0:01:46.6]} 35. Nf3 {[%clk 0:00:20]} 35... Rh3 {[%clk
0:01:46.1]} 0-1

[Event "Early-Titled-Tuesday-Blitz-October-17-2023"]
[Site "Chess.com"]
[Date "2023.10.17"]
[Round "8"]
[White "jasonbolivar"]
[Black "Deadmold"]
[Result "0-1"]
[WhiteElo "2294"]
[BlackElo "2221"]
[TimeControl "180+1"]
[EndTime "9:30:19 PDT"]
[Termination "Deadmold won by resignation"]

1. e4 {[%clk 0:01:28.5]} 1... Nf6 {[%clk 0:02:59.4]} 2. e5 {[%clk 0:01:28.2]}
2... Nd5 {[%clk 0:02:59.8]} 3. d4 {[%clk 0:01:27.8]} 3... d6 {[%clk 0:03:00]} 4.
Nf3 {[%clk 0:01:28]} 4... g6 {[%clk 0:02:59.9]} 5. Bc4 {[%clk 0:01:26.7]} 5...
Nb6 {[%clk 0:03:00.1]} 6. Bb3 {[%clk 0:01:27.2]} 6... Bg7 {[%clk 0:03:00.6]} 7.
Ng5 {[%clk 0:01:27.1]} 7... d5 {[%clk 0:03:00.5]} 8. Qf3 {[%clk 0:01:25.4]} 8...
f6 {[%clk 0:02:53]} 9. exf6 {[%clk 0:01:12.4]} 9... exf6 {[%clk 0:02:52.9]} 10.
Nh3 {[%clk 0:01:12.4]} 10... O-O {[%clk 0:02:48.6]} 11. O-O {[%clk 0:01:10.1]}
11... Bf5 {[%clk 0:02:41.2]} 12. Nc3 {[%clk 0:01:04.8]} 12... c6 {[%clk
0:02:40.8]} 13. Nf4 {[%clk 0:00:53.7]} 13... Na6 {[%clk 0:02:40.4]} 14. a3
{[%clk 0:00:38.2]} 14... Kh8 {[%clk 0:02:37.1]} 15. Nh5 {[%clk 0:00:31.4]} 15...
Be4 {[%clk 0:02:25]} 16. Nxe4 {[%clk 0:00:19.3]} 16... dxe4 {[%clk 0:02:25.9]}
17. Qh3 {[%clk 0:00:18.5]} 17... gxh5 {[%clk 0:02:23.6]} 18. Qxh5 {[%clk
0:00:18.7]} 18... Qe8 {[%clk 0:02:20.2]} 19. Qh4 {[%clk 0:00:18.2]} 19... Qg6
{[%clk 0:02:07.4]} 20. Be3 {[%clk 0:00:16.2]} 20... Nd5 {[%clk 0:02:05.1]} 21.
c4 {[%clk 0:00:15.2]} 21... Nxe3 {[%clk 0:01:55.7]} 22. fxe3 {[%clk 0:00:16.1]}
22... f5 {[%clk 0:01:45.4]} 23. c5 {[%clk 0:00:15.2]} 23... Nc7 {[%clk
0:01:42.9]} 24. Qe1 {[%clk 0:00:10]} 24... Nd5 {[%clk 0:01:38.1]} 25. Kh1 {[%clk
0:00:10.2]} 25... Qg5 {[%clk 0:01:32.1]} 0-1

[Event "Early-Titled-Tuesday-Blitz-October-17-2023"]
[Site "Chess.com"]
[Date "2023.10.17"]
[Round "8"]
[White "LamaChampetre"]
[Black "Aleksandar-Topalov"]
[Result "0-1"]
[WhiteElo "2230"]
[BlackElo "2343"]
[TimeControl "180+1"]
[EndTime "9:30:31 PDT"]
[Termination "Aleksandar-Topalov won by resignation"]

1. d4 {[%clk 0:02:46.6]} 1... Nf6 {[%clk 0:02:59.2]} 2. c4 {[%clk 0:02:45.5]}
2... c5 {[%clk 0:02:58.6]} 3. d5 {[%clk 0:02:45]} 3... d6 {[%clk 0:02:59.1]} 4.
Nc3 {[%clk 0:02:44]} 4... g6 {[%clk 0:02:59.4]} 5. e4 {[%clk 0:02:44.4]} 5...
Bg7 {[%clk 0:02:59.7]} 6. h3 {[%clk 0:02:44.7]} 6... O-O {[%clk 0:02:58.3]} 7.
Nf3 {[%clk 0:02:45]} 7... e6 {[%clk 0:02:58.7]} 8. Bd3 {[%clk 0:02:41.7]} 8...
exd5 {[%clk 0:02:57.1]} 9. exd5 {[%clk 0:02:42.6]} 9... Re8+ {[%clk 0:02:56.5]}
10. Be3 {[%clk 0:02:42.6]} 10... Nfd7 {[%clk 0:02:56.8]} 11. O-O {[%clk
0:02:41.9]} 11... Ne5 {[%clk 0:02:57]} 12. Nxe5 {[%clk 0:02:39.4]} 12... Bxe5
{[%clk 0:02:57.1]} 13. Qd2 {[%clk 0:02:39.7]} 13... f5 {[%clk 0:02:54.5]} 14.
Rae1 {[%clk 0:02:35.9]} 14... Nd7 {[%clk 0:02:53.5]} 15. Bg5 {[%clk 0:02:31.8]}
15... Bf6 {[%clk 0:02:41.2]} 16. Rxe8+ {[%clk 0:02:01.5]} 16... Qxe8 {[%clk
0:02:40.9]} 17. Nb5 {[%clk 0:02:01]} 17... Qd8 {[%clk 0:02:25.5]} 18. Bf4 {[%clk
0:01:53.1]} 18... Ne5 {[%clk 0:02:24.3]} 19. Re1 {[%clk 0:01:46.2]} 19... a6
{[%clk 0:02:24.1]} 20. Nc3 {[%clk 0:01:43.4]} 20... Bd7 {[%clk 0:02:24]} 21. a4
{[%clk 0:01:28.2]} 21... b6 {[%clk 0:02:18]} 22. b3 {[%clk 0:00:46.3]} 22... Rb8
{[%clk 0:02:17.5]} 23. Qc2 {[%clk 0:00:37.6]} 23... Qf8 {[%clk 0:02:15.3]} 24.
Bf1 {[%clk 0:00:26.7]} 24... Re8 {[%clk 0:02:13.4]} 25. Qd2 {[%clk 0:00:18.1]}
25... Qe7 {[%clk 0:02:10]} 26. Re2 {[%clk 0:00:15.6]} 26... Qf8 {[%clk
0:02:06.9]} 27. Nd1 {[%clk 0:00:15.5]} 27... Qg7 {[%clk 0:01:59.9]} 28. Bh6
{[%clk 0:00:15.1]} 28... Qh8 {[%clk 0:01:41.6]} 29. f4 {[%clk 0:00:15]} 29...
Nf7 {[%clk 0:01:41.7]} 30. Rxe8+ {[%clk 0:00:11.9]} 30... Bxe8 {[%clk
0:01:41.8]} 31. Qe3 {[%clk 0:00:10.2]} 31... Bd4 {[%clk 0:01:39.2]} 0-1